[Event "32nd Panamerican Youth 2022"]
[Site "Montevideo"]
[Date "2022.06.28"]
[Round "4.18"]
[White "Handsztok, Matias"]
[Black "Ticona Rocabado, Licael Roderick"]
[Result "0-1"]
[ECO "C02"]
[WhiteElo "1868"]
[BlackElo "2097"]
[Annotator "RC"]
[PlyCount "42"]
[EventDate "2022.06.26"]
[EventType "swiss"]
[EventCountry "URU"]
[SourceTitle "playchess.com"]
[Source "ChessBase"]
[SourceQuality "1"]
[TimeControl "5400+30"]

1. e4 e6 2. d4 d5 3. e5 c5 4. c3 Nc6 5. Nf3 Nge7 6. Na3 cxd4 7. cxd4 Nf5 8. Nc2 Be7 9. Bd3 O-O 10. g4 Nh4 11. Nxh4 Bxh4 12. g5 Bxg5 13. Qh5 h6 14. Rg1 Bxc1 15. Rxc1 Kh8 16. Rg6 fxg6 17. Qxg6 Rf5 18. Ke2 Ne7 19. Qg3 Rg5 20. Qf4 Bd7 21. h4 Rf5 0-1

[Event "32nd Panamerican Youth 2022"]
[Site "Montevideo"]
[Date "2022.06.28"]
[Round "4.19"]
[White "Lavandeira, Juan Facundo"]
[Black "Cabiativa, Juan Esteban"]
[Result "0-1"]
[ECO "A34"]
[WhiteElo "1676"]
[BlackElo "1933"]
[Annotator "RC"]
[PlyCount "21"]
[EventDate "2022.06.26"]
[EventType "swiss"]
[EventCountry "URU"]
[SourceTitle "playchess.com"]
[Source "ChessBase"]
[SourceQuality "1"]
[TimeControl "5400+30"]

1. c4 {[%emt 0:00:15]} c5 {[%emt 0:00:45]} 2. g3 {[%emt 0:01:21]} Nf6 {[%emt 0:01:45]} 3. Bg2 {[%emt 0:01:36]} d5 {[%emt 0:05:21]} 4. cxd5 {[%emt 0:01:45]} Nxd5 {[%emt 0:00:16]} 5. Nc3 {[%emt 0:01:02]} Nc7 {[%emt 0:00:58]} 6. Nf3 {[%emt 0:01:43]} Nc6 {[%emt 0:01:56]} 7. O-O {[%emt 0:00:27]} e5 {[%emt 0:01:56]} 8. d3 {[%emt 0:03:04]} Be7 {[%emt 0:00:53]} 9. Nd2 {[%emt 0:02:25]} Bd7 {[%emt 0:08:02]} 10. Nc4 {[%emt 0:07:05]} f6 {[%emt 0:09:28]} 11. a4 {[%emt 0:16:08]} 0-1

[Event "32nd Panamerican Youth 2022"]
[Site "Montevideo"]
[Date "2022.06.28"]
[Round "4.25"]
[White "Galaviz Medina, Atlas Adomaitis"]
[Black "Fiorito, Joaquin"]
[Result "1-0"]
[ECO "D45"]
[WhiteElo "2096"]
[BlackElo "2258"]
[Annotator "TA"]
[PlyCount "55"]
[EventDate "2022.06.26"]
[EventType "swiss"]
[EventCountry "URU"]
[SourceTitle "playchess.com"]
[Source "ChessBase"]
[SourceQuality "1"]
[TimeControl "5400+30"]

{[%evp 15,55,-6,7,-2,13,16,8,12,14,8,8,0,0,0,-6,-44,0,-66,-60,-51,-53,-72,0,0,0,0,43,49,33,52,69,64,62,52,449,433,457,283,868,836,736,714]} 1. d4 {[%emt 0:00:03]} d5 {[%emt 0:00:17]} 2. Nf3 {[%emt 0:00:09]} Nf6 {[%emt 0:00:18]} 3. c4 {[%emt 0:00:15]} c6 {[%emt 0:00:20]} 4. Nc3 {[%emt 0:00:05]} e6 {[%emt 0:00:44]} 5. e3 {[%emt 0:00:45]} Nbd7 {[%emt 0:00:08]} 6. Qc2 {[%emt 0:07:07]} Bd6 {[%emt 0:00:05]} 7. Bd3 {[%emt 0:02:06]} dxc4 {[%emt 0:00:57]} 8. Bxc4 {[%emt 0:00:08]} b5 {[%emt 0:00:02]} 9. Bd3 {[%emt 0:02:15] D46: Semi-Slav: 5 e3 Nbd7 6 Bd3, Black avoids the Meran.} Bb7 {[%emt 0:02:27]} 10. e4 {[%emt 0:11:07]} e5 {[%emt 0:00:51]} 11. dxe5 {[%emt 0:18:51] The position is equal. was the old line (11.Bg5).} Nxe5 {[%emt 0:00:30]} 12. Nxe5 {[%emt 0:01:31]} Bxe5 {[%emt 0:01:04]} 13. Ne2 {[%emt 0:04:52] [#]} h6 $146 ({Predecessor:} 13... Bd6 14. Bd2 Nd7 15. Ng3 Ne5 16. Be2 O-O 17. f4 Nd7 18. e5 Bc7 19. O-O-O a6 20. Bb4 Re8 21. Bg4 {½-½ (21) Deleyn,G (2250)-Lastin,A (2616) Plovdiv 2010}) 14. h3 {[%emt 0:05:00]} O-O {[%emt 0:22:59][%cal Oc6c5] Strongly threatening ...c5!} 15. f4 {[%emt 0:27:01]} Bd4 {[%emt 0:00:30]} (15... c5 $5 {[%cal Rc5c4]} 16. fxe5 c4 17. exf6 cxd3 $15) 16. Bd2 {[%emt 0:00:30]} (16. e5 $1 $11) 16... c5 $15 {[%emt 0:00:30] Hoping for ...c4.} 17. e5 $1 {[%emt 0:00:30]} Nd5 {[%emt 0:00:30]} ({Much less strong is} 17... Bxg2 18. Rh2 Bxb2 19. Rb1 $14 (19. Rxg2 $2 Bxa1 20. exf6 Bxf6 $17) (19. Qxb2 Qxd3 20. Rxg2 Qxh3 $14) (19. exf6 Bxa1 20. fxg7 Qh4+ 21. Kd1 Bxg7 $11)) 18. O-O-O {[%emt 0:00:30]} Ne3 {[%emt 0:00:30]} ({Black should try} 18... Qb6 $17 {aiming for ...Be3.} 19. Kb1 Rfd8) 19. Bxe3 $11 {[%emt 0:00:30]} Bxe3+ {[%emt 0:00:30]} 20. Kb1 {[%emt 0:00:30] Black must now prevent Bh7+.} Qa5 {[%emt 0:00:30]} 21. Be4 {[%emt 0:00:30]} Bxe4 {[%emt 0:00:30]} 22. Qxe4 {[%emt 0:00:30]} Bd2 {[%emt 0:00:30]} 23. Ng3 {[%emt 0:00:30][%cal Be2g3,Bg3f5,Bf5h6][%mdl 32] Nf5 is the strong threat.} c4 {[%emt 0:00:30]} 24. Nf5 $36 {[%emt 0:00:30][%mdl 2048] Threatens to win with Ne7+. Black is under pressure.} Bb4 {[%emt 0:00:30][%mdl 8192] [#] Prevents Ne7+. This costs Black the game.} (24... c3 $14) 25. e6 $1 $18 {[%emt 0:00:30] Intending Qd4 and mate.} fxe6 {[%emt 0:00:30]} 26. Qxe6+ {[%emt 0:00:30]} Rf7 $2 {[%emt 0:00:30]} (26... Kh8 27. Nxg7 Qb6) 27. Rd7 {[%emt 0:00:30]} Raf8 {[%emt 0:00:30] [#]} 28. Nxh6+ $1 {[%emt 0:00:30][%mdl 512] Weighted Error Value: White=0.21 (precise) /Black=0.57} 1-0

[Event "32nd Panamerican Youth 2022"]
[Site "Montevideo"]
[Date "2022.06.28"]
[Round "4.29"]
[White "Garcia Andrada, Heidy Nicole"]
[Black "Matus, Nastassja"]
[Result "1-0"]
[ECO "A01"]
[WhiteElo "1918"]
[BlackElo "1908"]
[Annotator "RC"]
[PlyCount "137"]
[EventDate "2022.06.26"]
[EventType "swiss"]
[EventCountry "URU"]
[SourceTitle "playchess.com"]
[Source "ChessBase"]
[SourceQuality "1"]
[TimeControl "5400+30"]

1. b3 {[%emt 0:00:04]} e5 {[%emt 0:00:12]} 2. Bb2 {[%emt 0:00:09]} Nc6 {[%emt 0:00:13]} 3. e3 {[%emt 0:00:09]} g6 {[%emt 0:00:34]} 4. Bb5 {[%emt 0:05:32]} Bg7 {[%emt 0:04:48]} 5. f4 {[%emt 0:02:56]} d6 {[%emt 0:17:44]} 6. Nf3 {[%emt 0:04:08]} Bd7 {[%emt 0:03:36]} 7. O-O {[%emt 0:04:55]} Qe7 {[%emt 0:05:42]} 8. Nc3 Nf6 {[%emt 0:10:18]} 9. e4 {[%emt 0:16:24]} O-O-O {[%emt 0:08:28]} 10. d3 {[%emt 0:13:54]} h5 {[%emt 0:11:11]} 11. a3 {[%emt 0:08:22]} h4 {[%emt 0:07:20]} 12. Qe1 {[%emt 0:15:40]} h3 {[%emt 0:04:58]} 13. g3 {[%emt 0:00:02]} Rh5 {[%emt 0:03:30]} 14. fxe5 {[%emt 0:05:40]} dxe5 {[%emt 0:04:56]} 15. b4 {[%emt 0:00:02]} Nd4 {[%emt 0:02:07]} 16. Nxd4 {[%emt 0:01:49]} exd4 {[%emt 0:00:17]} 17. Bxd7+ {[%emt 0:00:05]} Qxd7 {[%emt 0:00:33]} 18. Ne2 {[%emt 0:00:30]} Ng4 {[%emt 0:00:54]} 19. Nf4 {[%emt 0:04:01]} Rh7 {[%emt 0:00:32]} 20. Bc1 {[%emt 0:00:27]} Be5 {[%emt 0:01:26]} 21. Rf3 {[%emt 0:02:33]} g5 {[%emt 0:01:11]} 22. Ne2 {[%emt 0:00:27]} f6 {[%emt 0:00:18]} 23. Bd2 {[%emt 0:01:07]} Qc6 {[%emt 0:02:29]} 24. Rc1 {[%emt 0:00:24]} Qa6 {[%emt 0:01:27]} 25. Ra1 {[%emt 0:00:44]} Qa4 {[%emt 0:01:04]} 26. Ra2 {[%emt 0:00:54]} Qe8 {[%emt 0:00:26]} 27. Nc1 {[%emt 0:01:52]} Qe6 {[%emt 0:01:54]} 28. Rf5 {[%emt 0:02:41]} Nh6 {[%emt 0:00:49]} 29. Rf1 {[%emt 0:01:22]} Nf7 {[%emt 0:00:26]} 30. Rb2 {[%emt 0:01:43]} Nd6 {[%emt 0:01:01]} 31. a4 {[%emt 0:01:27]} Qd7 {[%emt 0:00:46]} 32. b5 {[%emt 0:00:56]} c5 {[%emt 0:02:57]} 33. c4 {[%emt 0:00:24]} dxc3 {[%emt 0:01:22]} 34. Bxc3 {[%emt 0:00:06]} Qe7 {[%emt 0:00:57]} 35. Rc2 {[%emt 0:00:41]} Nf7 {[%emt 0:00:40]} 36. Qe3 {[%emt 0:00:45]} Kb8 {[%emt 0:00:31]} 37. Bxe5+ {[%emt 0:01:01]} Nxe5 {[%emt 0:00:03]} 38. Qxc5 {[%emt 0:00:42]} Qxc5+ {[%emt 0:00:27]} 39. Rxc5 {[%emt 0:00:01]} Nxd3 {[%emt 0:00:21]} 40. Nxd3 {[%emt 0:00:59]} Rxd3 {[%emt 0:00:03]} 41. Rxf6 {[%emt 0:00:18]} Rhd7 {[%emt 0:00:49]} 42. Rf8+ {[%emt 0:00:39]} Rd8 {[%emt 0:00:01]} 43. Rxd8+ {[%emt 0:00:20]} Rxd8 {[%emt 0:00:02]} 44. Rxg5 {[%emt 0:02:17]} Rd1+ {[%emt 0:00:05]} 45. Kf2 {[%emt 0:00:04]} Rd2+ {[%emt 0:00:13]} 46. Kf3 {[%emt 0:00:17]} Rxh2 {[%emt 0:00:26]} 47. Rh5 {[%emt 0:00:28]} Ra2 {[%emt 0:01:08]} 48. Rxh3 {[%emt 0:00:25]} Rxa4 {[%emt 0:00:02]} 49. Rh5 {[%emt 0:00:27]} Kc7 {[%emt 0:01:07]} 50. Rd5 {[%emt 0:00:23]} a6 {[%emt 0:01:40]} 51. bxa6 {[%emt 0:00:20]} bxa6 {[%emt 0:00:06]} 52. g4 {[%emt 0:00:11]} Ra1 {[%emt 0:00:25]} 53. g5 {[%emt 0:00:27]} a5 {[%emt 0:00:26]} 54. Kf4 {[%emt 0:00:15]} a4 {[%emt 0:00:17]} 55. g6 {[%emt 0:01:22]} a3 {[%emt 0:00:32]} 56. g7 {[%emt 0:01:27]} Rg1 {[%emt 0:00:44]} 57. Ra5 {[%emt 0:00:35]} Kb6 {[%emt 0:01:22]} 58. Rxa3 {[%emt 0:00:05]} Rxg7 {[%emt 0:00:09]} 59. Rc3 {[%emt 0:00:04]} Rg1 {[%emt 0:00:54]} 60. e5 {[%emt 0:00:14]} Re1 {[%emt 0:00:37]} 61. Kf5 {[%emt 0:00:12]} Rf1+ {[%emt 0:00:09]} 62. Kg6 {[%emt 0:00:05]} Re1 {[%emt 0:00:24]} 63. Kf6 {[%emt 0:00:08]} Rf1+ {[%emt 0:00:08]} 64. Ke7 {[%emt 0:00:07]} Re1 {[%emt 0:00:35]} 65. e6 {[%emt 0:00:03]} Rf1 {[%emt 0:00:18]} 66. Ke8 {[%emt 0:00:10]} Re1 {[%emt 0:00:48]} 67. e7 {[%emt 0:00:56]} Rd1 {[%emt 0:00:42]} 68. Rf3 {[%emt 0:00:19]} Kc7 {[%emt 0:01:07]} 69. Kf8 {[%emt 0:00:09]} 1-0

[Event "32nd Panamerican Youth 2022"]
[Site "Montevideo"]
[Date "2022.06.28"]
[Round "4.30"]
[White "Bosco, Giuliana"]
[Black "Borda Rodas, Anapaola S."]
[Result "0-1"]
[ECO "C63"]
[WhiteElo "1803"]
[BlackElo "2141"]
[Annotator "RC"]
[PlyCount "32"]
[EventDate "2022.06.26"]
[EventType "swiss"]
[EventCountry "URU"]
[SourceTitle "playchess.com"]
[Source "ChessBase"]
[SourceQuality "1"]
[TimeControl "5400+30"]

1. e4 {[%emt 0:00:06]} e5 {[%emt 0:00:26]} 2. Nf3 {[%emt 0:00:14]} Nc6 {[%emt 0:00:13]} 3. Bb5 {[%emt 0:00:13]} f5 {[%emt 0:00:36]} 4. d3 {[%emt 0:12:44]} fxe4 {[%emt 0:01:22]} 5. dxe4 {[%emt 0:00:10]} Nf6 {[%emt 0:00:30]} 6. O-O {[%emt 0:08:52]} d6 {[%emt 0:01:13]} 7. Re1 {[%emt 0:06:36]} Be7 {[%emt 0:03:32]} 8. c3 {[%emt 0:02:07]} O-O {[%emt 0:01:21]} 9. Nbd2 {[%emt 0:01:21]} Qe8 {[%emt 0:05:30]} 10. Nf1 {[%emt 0:06:11]} Nh5 {[%emt 0:05:51]} 11. Ng3 Bg4 {[%emt 0:07:45]} 12. Be2 {[%emt 0:12:49]} Kh8 {[%emt 0:09:10]} 13. Ng5 {[%emt 0:12:38]} Bxe2 {[%emt 0:03:31]} 14. Qxe2 {[%emt 0:00:08]} Nf4 {[%emt 0:00:13]} 15. Qg4 {[%emt 0:01:13]} Qg6 {[%emt 0:00:10]} 16. h4 {[%emt 0:01:27]} h6 {[%emt 0:00:57]} 0-1

[Event "32nd Panamerican Youth 2022"]
[Site "Montevideo"]
[Date "2022.06.28"]
[Round "4.32"]
[White "Perez Hernandez, Vicmary C."]
[Black "Castano, Saray"]
[Result "0-1"]
[ECO "B31"]
[WhiteElo "1909"]
[BlackElo "1704"]
[Annotator "RC"]
[PlyCount "36"]
[EventDate "2022.06.26"]
[EventType "swiss"]
[EventCountry "URU"]
[SourceTitle "playchess.com"]
[Source "ChessBase"]
[SourceQuality "1"]
[TimeControl "5400+30"]

1. e4 c5 2. Nf3 Nc6 3. Bb5 g6 4. Bxc6 bxc6 5. O-O Bg7 6. d3 e5 7. a4 d6 8. Na3 Nh6 9. Nc4 O-O 10. Bg5 f6 11. Bh4 g5 12. Bg3 f5 13. exf5 Nxf5 14. a5 Nxg3 15. fxg3 {[%emt 0:43:05]} Ba6 {[%emt 1:02:01]} 16. Qd2 {[%emt 0:01:38]} Bxc4 {[%emt 0:09:49]} 17. dxc4 {[%emt 0:00:04]} e4 {[%emt 0:00:31]} 18. Ne1 {[%emt 0:03:36]} Bd4+ {[%emt 0:00:20]} 0-1

[Event "32nd Panamerican Youth 2022"]
[Site "Montevideo"]
[Date "2022.06.28"]
[Round "4.35"]
[White "Hernandez, Jeronimo"]
[Black "Jaque Gutierrez, Matias"]
[Result "0-1"]
[ECO "B40"]
[WhiteElo "2121"]
[BlackElo "2011"]
[Annotator "RC"]
[PlyCount "23"]
[EventDate "2022.06.26"]
[EventType "swiss"]
[EventCountry "URU"]
[SourceTitle "playchess.com"]
[Source "ChessBase"]
[SourceQuality "1"]
[TimeControl "5400+30"]

1. e4 {[%emt 0:01:04]} c5 {[%emt 0:00:15]} 2. Nf3 {[%emt 0:01:56]} e6 {[%emt 0:00:18]} 3. c4 {[%emt 0:00:21]} Nc6 {[%emt 0:00:29]} 4. Be2 {[%emt 0:01:01]} g5 {[%emt 0:02:10]} 5. h3 {[%emt 0:02:43]} Bg7 {[%emt 0:01:01]} 6. d3 {[%emt 0:00:53]} h6 {[%emt 0:02:05]} 7. Nc3 {[%emt 0:00:19]} Nge7 {[%emt 0:03:06]} 8. Be3 {[%emt 0:00:23]} Nd4 {[%emt 0:02:48]} 9. O-O {[%emt 0:02:08]} Nec6 {[%emt 0:04:28]} 10. Nb5 {[%emt 0:07:01]} Nxf3+ 11. Bxf3 {[%emt 0:03:56]} d6 {[%emt 0:18:17]} 12. Bh5 {[%emt 0:01:21]} 0-1

[Event "32nd Panamerican Youth 2022"]
[Site "Montevideo"]
[Date "2022.06.30"]
[Round "7.4"]
[White "Oro, Faustino"]
[Black "Ayala Delgado, Sergio Alejandro"]
[Result "0-1"]
[ECO "C42"]
[WhiteElo "2008"]
[BlackElo "1598"]
[Annotator "RC"]
[PlyCount "48"]
[EventDate "2022.06.26"]
[EventType "swiss"]
[EventCountry "URU"]
[SourceTitle "playchess.com"]
[Source "ChessBase"]
[SourceQuality "1"]
[TimeControl "5400+30"]

1. e4 e5 2. Nf3 Nf6 3. Nxe5 Nxe4 4. Qe2 Qe7 5. Qxe4 d6 6. d4 dxe5 7. dxe5 Nc6 8. Bb5 Bd7 9. Nc3 O-O-O 10. Bf4 a6 11. Bc4 Be6 12. O-O Bxc4 13. Qxc4 Rd4 14. Qe2 Rxf4 15. Nd5 Qg5 16. Nxf4 Qxf4 17. Rfe1 Bc5 18. g3 Qf5 19. Kg2 Re8 20. f4 Qe6 21. Qe4 f5 22. Qe2 Nd4 23. Qd3 Qc6+ 24. Kh3 Re6 0-1

[Event "32nd Panamerican Youth 2022"]
[Site "Montevideo"]
[Date "2022.06.30"]
[Round "7.5"]
[White "Gomez Gonzales, Fabiana"]
[Black "Vidyarthi, Omya"]
[Result "0-1"]
[ECO "D00"]
[WhiteElo "1366"]
[BlackElo "1872"]
[Annotator "NA RC"]
[PlyCount "82"]
[EventDate "2022.06.26"]
[EventType "swiss"]
[EventCountry "URU"]
[SourceTitle "playchess.com"]
[Source "ChessBase"]
[SourceQuality "1"]
[TimeControl "5400+30"]

1. d4 {[%emt 0:00:22]} d5 {[%emt 0:00:07]} 2. Bf4 {[%emt 0:00:56]} Nf6 {[%emt 0:00:09]} 3. e3 {[%emt 0:00:12]} c5 {[%emt 0:00:06]} 4. c3 {[%emt 0:00:20]} Nc6 {[%emt 0:00:10]} 5. Nd2 {[%emt 0:00:59]} e6 {[%emt 0:00:19]} 6. Ngf3 {[%emt 0:01:17]} cxd4 {[%emt 0:00:12] is recently more successful than 6...Bd6.} 7. exd4 {[%emt 0:00:41]} Nh5 {[%emt 0:00:09]} 8. Bg5 {[%emt 0:00:39]} f6 {[%emt 0:00:11]} 9. Bh4 {[%emt 0:00:32]} Nf4 {[%emt 0:00:50]} 10. Bg3 {[%emt 0:01:46]} Bd6 {[%emt 0:00:19]} 11. Bxf4 {[%emt 0:02:39]} Bxf4 {[%emt 0:00:09]} 12. Bb5 {[%emt 0:03:12] [#]} O-O $146 {[%emt 0:00:56]} ({Predecessor:} 12... Qc7 13. O-O O-O 14. Re1 e5 15. g3 Bxd2 16. Qxd2 e4 17. Nh4 Ne7 18. Rac1 a6 {0-1 (52) Arciniegas Castro,S (1389)-Oliveros,C (2049) Barranquilla 2018}) 13. O-O {[%emt 0:02:34]} a6 {[%emt 0:02:42]} 14. Ba4 {[%emt 0:01:46]} Bc7 {[%emt 0:00:56]} 15. Re1 {[%emt 0:02:19]} b5 {[%emt 0:03:26]} 16. Bc2 {[%emt 0:00:22]} Qd6 {[%emt 0:00:15]} 17. Nf1 {[%emt 0:02:01]} e5 {[%emt 0:02:30]} 18. Bb3 {[%emt 0:12:53]} Rd8 {[%emt 0:13:08]} 19. h3 {[%emt 0:17:31]} (19. Ne3 $14 Ne7 20. dxe5 fxe5 21. g3) 19... h6 {[%emt 0:06:03]} 20. a3 {[%emt 0:03:51]} (20. dxe5 $11 fxe5 21. Qd3) 20... Be6 {[%emt 0:00:52]} 21. Rc1 {[%emt 0:09:14]} (21. dxe5 $15 fxe5 22. Rc1) 21... e4 {[%emt 0:01:25]} 22. N3d2 {[%emt 0:01:05]} f5 {[%emt 0:02:35]} 23. f3 {[%emt 0:01:19]} Rd7 {[%emt 0:09:43]} 24. fxe4 {[%emt 0:01:13]} (24. Ba2 $17 {was called for.}) 24... fxe4 {[%emt 0:00:06]} 25. Qh5 {[%emt 0:05:22]} Kh7 {[%emt 0:06:16]} (25... Rf7 $142 26. Re3 Raf8) 26. Re3 {[%emt 0:08:03]} g6 {[%emt 0:00:27]} 27. Qh4 {[%emt 0:03:58]} Rf8 {[%emt 0:00:56]} 28. a4 {[%emt 0:07:05]} Rf4 $19 {[%emt 0:08:22]} 29. Qg3 {[%emt 0:01:06]} Qf8 {[%emt 0:04:00]} 30. Qe1 {[%emt 0:01:09]} Rf6 {[%emt 0:03:09]} 31. axb5 {[%emt 0:00:36]} axb5 {[%emt 0:00:05]} 32. Ra1 {[%emt 0:00:29]} Rdf7 {[%emt 0:05:41]} 33. Ra6 {[%emt 0:05:08] [#]} (33. Qe2 $142) 33... Rxf1+ $1 {[%emt 0:01:17]} 34. Nxf1 {[%emt 0:00:07]} Rxf1+ {[%emt 0:00:04]} 35. Qxf1 {[%emt 0:00:02]} Bh2+ {[%emt 0:00:07]} 36. Kxh2 {[%emt 0:00:03]} Qxf1 {[%emt 0:00:06]} 37. Rxc6 {[%emt 0:00:26]} Qf4+ {[%emt 0:00:06]} 38. Rg3 {[%emt 0:00:10]} h5 {[%emt 0:00:07]} 39. Rxe6 {[%emt 0:00:24]} h4 {[%emt 0:00:05]} 40. Bxd5 {[%emt 0:00:17]} hxg3+ {[%emt 0:00:08]} 41. Kg1 {[%emt 0:00:13]} Qc1# {[%emt 0:00:04]} 0-1

[Event "32nd Panamerican Youth 2022"]
[Site "Montevideo"]
[Date "2022.06.30"]
[Round "7.6"]
[White "Su, Jasmine Zhixin"]
[Black "Carvajal Mendoza, Maria Belen"]
[Result "1-0"]
[ECO "B06"]
[WhiteElo "1984"]
[BlackElo "1377"]
[Annotator "RC"]
[PlyCount "85"]
[EventDate "2022.06.26"]
[EventType "swiss"]
[EventCountry "URU"]
[SourceTitle "playchess.com"]
[Source "ChessBase"]
[SourceQuality "1"]
[TimeControl "5400+30"]

1. e4 {[%emt 0:00:01]} g6 {[%emt 0:00:17]} 2. d4 {[%emt 0:00:02]} Bg7 {[%emt 0:00:14]} 3. Nc3 {[%emt 0:00:07]} c6 4. Nf3 {[%emt 0:15:06]} d5 {[%emt 0:01:45]} 5. Be3 {[%emt 0:04:44]} Bg4 {[%emt 0:00:45]} 6. Be2 {[%emt 0:00:47]} dxe4 {[%emt 0:00:33]} 7. Nxe4 {[%emt 0:00:06]} Nd7 {[%emt 0:00:25]} 8. h3 {[%emt 0:00:23]} Bxf3 {[%emt 0:00:15]} 9. Bxf3 {[%emt 0:00:05]} Ngf6 {[%emt 0:00:41]} 10. c3 {[%emt 0:01:48]} O-O 11. Nxf6+ {[%emt 0:04:07]} Nxf6 {[%emt 0:03:19]} 12. Qc2 {[%emt 0:00:48]} Qc7 {[%emt 0:04:29]} 13. O-O-O {[%emt 0:01:27]} Rfd8 {[%emt 0:01:46]} 14. Kb1 {[%emt 0:00:40]} Rac8 {[%emt 0:11:10]} 15. Rhe1 {[%emt 0:03:02]} b5 {[%emt 0:06:41]} 16. g4 {[%emt 0:03:34]} Rd7 {[%emt 0:22:02]} 17. Qc1 {[%emt 0:15:50]} a5 {[%emt 0:05:45]} 18. Bf4 {[%emt 0:03:32]} Qa7 {[%emt 0:03:26]} 19. Be5 {[%emt 0:04:30]} Nd5 {[%emt 0:07:57]} 20. g5 {[%emt 0:02:52]} c5 {[%emt 0:07:45]} 21. dxc5 {[%emt 0:10:53]} Rxc5 {[%emt 0:02:44]} 22. Ka1 {[%emt 0:02:52]} Bxe5 {[%emt 0:02:19]} 23. Rxe5 {[%emt 0:00:07]} e6 {[%emt 0:00:23]} 24. Bxd5 {[%emt 0:03:10]} Rcxd5 {[%emt 0:00:08]} 25. Rexd5 {[%emt 0:00:14]} Rxd5 {[%emt 0:00:02]} 26. Rxd5 {[%emt 0:00:30]} exd5 {[%emt 0:00:01]} 27. Qf4 {[%emt 0:01:00]} Qd7 {[%emt 0:00:38]} 28. h4 {[%emt 0:00:50]} Qh3 {[%emt 0:01:15]} 29. a4 Qf1+ {[%emt 0:01:44]} 30. Ka2 {[%emt 0:07:11]} Qc4+ {[%emt 0:00:08]} 31. Qxc4 {[%emt 0:00:09]} bxc4 {[%emt 0:00:06]} 32. b4 {[%emt 0:00:24]} cxb3+ {[%emt 0:01:26]} 33. Kxb3 Kf8 {[%emt 0:06:11]} 34. c4 {[%emt 0:00:16]} dxc4+ {[%emt 0:01:43]} 35. Kxc4 {[%emt 0:00:05]} Ke7 {[%emt 0:00:02]} 36. Kb5 {[%emt 0:00:30]} Kd6 {[%emt 0:00:12]} 37. Kxa5 {[%emt 0:00:07]} Kc5 {[%emt 0:00:02]} 38. f3 {[%emt 0:00:12]} Kc6 {[%emt 0:00:13]} 39. Kb4 {[%emt 0:00:03]} Kb6 {[%emt 0:01:41]} 40. a5+ {[%emt 0:00:09]} Ka6 {[%emt 0:00:09]} 41. Ka4 {[%emt 0:00:03]} Kb7 {[%emt 0:00:16]} 42. Kb5 {[%emt 0:00:04]} Ka7 {[%emt 0:00:06]} 43. a6 1-0

[Event "32nd Panamerican Youth 2022"]
[Site "Montevideo"]
[Date "2022.06.30"]
[Round "7.7"]
[White "Silva, Juliana Figueira The"]
[Black "El Hage Serrano, Caely"]
[Result "0-1"]
[ECO "D02"]
[WhiteElo "1286"]
[BlackElo "1308"]
[Annotator "NA RC"]
[PlyCount "120"]
[EventDate "2022.06.26"]
[EventType "swiss"]
[EventCountry "URU"]
[SourceTitle "playchess.com"]
[Source "ChessBase"]
[SourceQuality "1"]
[TimeControl "5400+30"]

1. d4 {[%emt 0:00:58]} d5 {[%emt 0:00:06]} 2. Nf3 {[%emt 0:00:30]} e6 {[%emt 0:00:07]} 3. Bf4 {[%emt 0:01:10]} c5 {[%emt 0:00:24]} 4. c3 {[%emt 0:02:23]} Nf6 {[%emt 0:01:14]} 5. e3 {[%emt 0:01:36]} h6 {[%emt 0:01:49]} 6. Be2 {[%emt 0:03:39]} Nc6 {[%emt 0:05:47]} 7. Nbd2 {[%emt 0:04:41]} Nh5 {[%emt 0:00:56]} 8. Bg3 {[%emt 0:02:59]} Nxg3 {[%emt 0:00:09]} 9. hxg3 {[%emt 0:00:37]} cxd4 {[%emt 0:00:10]} 10. cxd4 {[%emt 0:01:08]} Bd6 {[%emt 0:00:13]} 11. a3 {[%emt 0:08:05]} e5 {[%emt 0:02:07]} 12. O-O {[%emt 0:03:24]} O-O {[%emt 0:00:41]} 13. b4 {[%emt 0:02:06]} e4 {[%emt 0:00:14]} 14. Ne1 {[%emt 0:00:42]} Qg5 {[%emt 0:00:40]} 15. Nc2 {[%emt 0:02:55]} f5 {[%emt 0:00:31]} 16. Kh2 {[%emt 0:08:38]} Be6 {[%emt 0:06:14]} 17. Rh1 {[%emt 0:01:33]} Qf6 {[%emt 0:05:11]} 18. Kg1 {[%emt 0:00:31]} g5 {[%emt 0:01:02]} 19. Qe1 {[%emt 0:03:03]} Rf7 {[%emt 0:00:42]} 20. f4 {[%emt 0:04:46]} gxf4 {[%emt 0:03:04]} 21. gxf4 {[%emt 0:04:00]} Rg7 {[%emt 0:00:45]} 22. Qf2 {[%emt 0:02:45]} Be7 {[%emt 0:04:20]} 23. Rc1 {[%emt 0:02:12]} Kh7 {[%emt 0:00:48]} 24. Ne1 {[%emt 0:00:49]} Rag8 {[%emt 0:00:20]} 25. Rh2 {[%emt 0:00:31]} Qg6 {[%emt 0:02:12]} 26. Bh5 {[%emt 0:03:06]} Qf6 {[%emt 0:00:21]} 27. Nb3 {[%emt 0:00:51]} Bf7 {[%emt 0:02:41]} 28. Be2 {[%emt 0:01:29]} b6 {[%emt 0:08:49]} 29. b5 {[%emt 0:07:38]} Nd8 {[%emt 0:00:35]} 30. a4 {[%emt 0:00:58]} Ne6 {[%emt 0:12:07]} 31. Rc2 {[%emt 0:04:21]} Nf8 {[%emt 0:03:09]} 32. Rc7 {[%emt 0:01:11]} Be8 {[%emt 0:14:32]} 33. Rxa7 {[%emt 0:02:00]} Qd6 {[%emt 0:00:40]} 34. a5 {[%emt 0:07:11]} Ng6 {[%emt 0:02:53]} 35. Ra6 {[%emt 0:06:25]} Qb4 {[%emt 0:00:58]} 36. Bd1 {[%emt 0:00:53]} bxa5 {[%emt 0:00:57]} 37. Rxa5 {[%emt 0:01:20]} Bxb5 {[%emt 0:00:26]} 38. Ra2 {[%emt 0:01:13]} Bc4 {[%emt 0:00:59]} 39. Rb2 {[%emt 0:00:10]} Qc3 {[%emt 0:04:56]} 40. Qd2 {[%emt 0:01:05]} Bb4 {[%emt 0:01:02]} 41. Kf2 {[%emt 0:01:55]} Qxb3 {[%emt 0:04:00]} 42. Bxb3 {[%emt 0:01:10]} Bxd2 {[%emt 0:00:09]} 43. Bxc4 Bxe1+ {[%emt 0:00:09]} 44. Kxe1 {[%emt 0:00:44]} dxc4 {[%emt 0:00:03]} 45. Rb6 {[%emt 0:00:06]} Rc7 {[%emt 0:00:29]} 46. Kd2 {[%emt 0:00:05]} Ra8 {[%emt 0:00:47]} 47. d5 {[%emt 0:00:30]} c3+ {[%emt 0:00:21]} 48. Kc2 {[%emt 0:00:08]} Ra2+ {[%emt 0:00:18]} 49. Kc1 {[%emt 0:00:35]} c2 {[%emt 0:00:29]} 50. Rc6 Ra1+ {[%emt 0:00:35]} 51. Kb2 {[%emt 0:00:23]} c1=Q+ {[%emt 0:00:26]} 52. Rxc1 {[%emt 0:00:08]} Raxc1 {[%emt 0:00:06]} 53. d6 R7c2+ {[%emt 0:00:06]} 54. Kb3 {[%emt 0:00:21]} Rd2 {[%emt 0:00:07]} 55. Rh3 {[%emt 0:00:31]} Rxd6 {[%emt 0:00:07]} 56. g4 {[%emt 0:00:10]} Rb6+ {[%emt 0:00:13]} 57. Ka2 {[%emt 0:00:10]} Rc7 {[%emt 0:00:05]} 58. Rxh6+ {[%emt 0:00:14]} Kxh6 {[%emt 0:00:08]} 59. g5+ {[%emt 0:00:03]} Kg7 {[%emt 0:00:15]} 60. Ka3 {[%emt 0:00:04]} Ra7# {[%emt 0:00:07]} 0-1